lending/lending_fUSD_20250315
["ID","MTS","AMOUNT","RATE_DAILY","PERIOD"]
[356171951,1742005832771,-200.0,0.00012139,2]
[356171952,1742005832780,-200.0,0.00012139,2]
[356171953,1742005832790,-62.91725658,0.00012207,2]
[356171958,1742005837590,-87.08274342,0.00012207,2]
[356171959,1742005837600,-191.27550246,0.00012261,2]
[356171960,1742005837676,-8.72449754,0.00012261,2]
[356171961,1742005837685,-652.56998379,0.00012261,2]
[356171962,1742005837762,-338.15201621,0.00012261,2]
[356171963,1742005837772,-170.68896148,0.00012261,2]
[356171964,1742005837783,-29.31103852,0.00012261,2]
[356171965,1742005837792,-200.0,0.00012261,2]
[356171966,1742005837802,-200.0,0.00012261,2]
[356171967,1742005837811,-200.0,0.00012383,2]
[356171968,1742005837821,-200.0,0.00012383,2]
[356171969,1742005837830,-200.0,0.00012383,2]
[356171970,1742005837839,-200.0,0.00012383,2]
[356171971,1742005837849,-250.40781465,0.00012471,2]
[356171972,1742005837859,-617.9,0.00012561,2]
[356171973,1742005837874,-461.71704052,0.00012696,2]
[356171974,1742005837885,-735.61285948,0.00012696,2]
[356171975,1742005837895,-207.11795978,0.00012713,2]
[356171976,1742005837905,-500.0,0.00012713,2]
[356171977,1742005837915,-500.0,0.00012713,2]
[356171978,1742005837924,-500.0,0.00012713,2]
[356171979,1742005837934,-500.0,0.00012713,2]
[356171980,1742005837943,-500.0,0.00012713,2]
[356171981,1742005837954,-210.36734572,0.00012713,2]
[356171982,1742005837965,-289.63265428,0.00012713,2]
[356171983,1742005837975,-414.26214202,0.00012713,2]
[356171990,1742005839918,-85.73785798,0.00012713,2]
[356171991,1742005839928,-560.96293358,0.00012713,2]
[356171992,1742005840108,-45.33741852,0.00012713,2]
[356171993,1742005840120,-500.0,0.00012713,2]
[356171994,1742005840130,-2140.33226276,0.00012713,2]
[356171995,1742005840143,-1160.86283411,0.00012713,2]
[356171996,1742005840155,-270.35479811,0.00012713,2]
[356171997,1742005840167,-1034.42670973,0.00012713,2]
[356171998,1742005840291,-270.828,0.00012713,2]
[356171999,1742005840303,-4534.94174274,0.00012713,2]
[356172013,1742005843570,-6597.416152,0.00012713,2]
[356172014,1742005844094,-493.09706335,0.00012713,2]
[356172020,1742005845708,-500.09537951,0.00012713,2]
[356172023,1742005845803,-100011.68154092,0.00012713,2]
[356172024,1742005845815,-41409.36832648,0.00012713,2]
[356172029,1742006435272,857.02,9.403e-05,2]
[356172032,1742006879398,250.0,9e-05,2]
[356172036,1742007031888,-259.49,0.0001,2]
[356172037,1742007031898,-150.0,0.00010308,2]
[356172038,1742007031908,-837.66688436,0.00010516,2]
[356172039,1742007031921,-614.72573488,0.00010516,2]
[356172040,1742007031942,-268.08430313,0.00010516,2]
[356172041,1742007031998,-320.09861389,0.00010516,2]
[356172042,1742007032011,-589.6382492,0.00010516,2]
[356172043,1742007032020,-2116.83392182,0.00010616,2]
[356172044,1742007032030,-1419.0,0.00010616,2]
[356172045,1742007032040,-641.0,0.00010616,2]
[356172046,1742007032050,-151.0,0.00010616,2]
[356172047,1742007032060,-150.0,0.00010767,2]
[356172048,1742007032070,-300.0,0.0001078,2]
[356172049,1742007032079,-622.4747298,0.00010781,2]
[356172050,1742007032091,-1113.2152702,0.00010781,2]
[356172051,1742007032101,-408.75,0.00010802,2]
[356172052,1742007032111,-300.0,0.00011,2]
[356172053,1742007032121,-150.0,0.00011,2]
[356172054,1742007032131,-152.81,0.00011127,2]
[356172055,1742007032141,-200.44,0.00011251,2]
[356172056,1742007032151,-200.44,0.0001128,2]
[356172057,1742007032160,-200.44,0.0001131,2]
[356172058,1742007032170,-18818.18935681,0.00011313,2]
[356172059,1742007032179,-1354.61,0.00011323,2]
[356172060,1742007032188,-60881.53,0.00011323,2]
[356172061,1742007032198,-200.44,0.0001134,2]
[356172062,1742007032208,-200.44,0.00011369,2]
[356172063,1742007032217,-500.0,0.00011375,2]
[356172064,1742007032227,-155.38032187,0.0001138,2]
[356172065,1742007032236,-160.38962244,0.0001138,2]
[356172066,1742007032246,-151.55364503,0.0001138,2]
[356172067,1742007032260,-500.50602189,0.0001138,2]
[356172068,1742007032270,-200.44,0.00011399,2]
[356172069,1742007032279,-150.0,0.00011408,2]
[356172070,1742007032288,-200.44,0.00011428,2]
[356172071,1742007032299,-200.44,0.00011458,2]
[356172072,1742007032308,-150.0,0.00011465,2]
[356172073,1742007032318,-200.44,0.00011488,2]
[356172074,1742007032327,-150.0,0.00011488,2]
[356172075,1742007032337,-178.81,0.00011511,2]
[356172076,1742007032346,-200.44,0.00011517,2]
[356172077,1742007032356,-200.44,0.00011547,2]
[356172078,1742007032365,-160.40812473,0.0001155,2]
[356172079,1742007032374,-200.44,0.00011576,2]
[356172080,1742007032384,-250.0,0.00011582,2]
[356172081,1742007032393,-200.44,0.00011606,2]
[356172082,1742007032403,-200.44,0.00011636,2]
[356172083,1742007032412,-200.44,0.00011665,2]
[356172084,1742007032421,-857.02,0.00011667,2]
[356172085,1742007032431,-200.0,0.0001168,2]
[356172087,1742007032441,-2751.0,0.00011693,2]
[356172089,1742007032451,-200.44,0.00011695,2]
[356172091,1742007032461,-200.44,0.00011725,2]
[356172093,1742007032470,-200.44,0.00011754,2]
[356172094,1742007032480,-200.44,0.00011784,2]
[356172095,1742007032489,-200.44,0.00011813,2]
[356172096,1742007032499,-621.2,0.000119,2]
[356172097,1742007032509,-1000.0,0.000119,2]
[356172098,1742007032519,-4581.39172297,0.000119,2]
[356172099,1742007032529,-408.75,0.00012153,2]
[356172100,1742007032539,-1223.4900828,0.00012331,2]
[356172101,1742007032550,-5769.9571,0.00012413,2]
[356172102,1742007032560,-292.99589581,0.00012512,2]
[356172103,1742007032569,-39433.55769579,0.00012512,2]
[356172104,1742007032579,-1249.7417922,0.00012512,2]
[356172105,1742007032588,-1871.4565,0.00012512,2]
[356172106,1742007032598,-267.5963,0.00012512,2]
[356172107,1742007032608,-1458.5461,0.00012512,2]
[356172108,1742007032617,-1000.0,0.00012512,2]
[356172109,1742007032627,-412.53431695,0.00012513,2]
[356172110,1742007032636,-433.98358239,0.0001256,2]
[356172111,1742007032646,-374.56836542,0.00012602,2]
[356172112,1742007032655,-200.0,0.00012611,2]
[356172113,1742007032666,-285483.78548331,0.00012612,2]
[356172114,1742007032675,-109457.95969691,0.00012612,2]
[356172115,1742007032685,-197.428,0.00012612,2]
[356172116,1742007032694,-1458.783,0.00012612,2]
[356172117,1742007032703,-37966.2687,0.00012613,2]
[356172118,1742007032713,-22782.4602,0.00012614,2]
[356172119,1742007032723,-1017.6112,0.00012614,2]
[356172120,1742007032732,-1000.0,0.00012658,2]
[356172121,1742007032742,-500.0,0.00012658,2]
[356172122,1742007032752,-949.1013,0.00012658,2]
[356172123,1742007032763,-159.20861658,0.00012673,2]
[356172124,1742007032773,-500.91707247,0.00012673,2]
[356172125,1742007032782,-160.36944439,0.00012673,2]
[356172126,1742007032791,-11764.58,0.000127,2]
[356172127,1742007032801,-200.0,0.00012713,2]
[356172128,1742007032810,-1579.265,0.00012713,8]
[356172129,1742007032820,-37158.2182,0.00012713,2]
[356172130,1742007032830,-944.302654,0.00012731,2]
[356172131,1742007032840,-706.3786689,0.0001274,2]
[356172132,1742007032849,-728.2388918,0.0001274,2]
[356172133,1742007032859,-204.1294108,0.00012749,2]
[356172134,1742007032869,-423.6685,0.00012758,2]
[356172135,1742007032878,-3021.4592,0.00012758,2]
[356172136,1742007032887,-8500.0,0.00012805,2]
[356172137,1742007032897,-8500.0,0.00012814,2]
[356172138,1742007032906,-8500.0,0.00012822,2]
[356172139,1742007032916,-8500.0,0.00012831,2]
[356172140,1742007032927,-200.0,0.0001284,2]
[356172141,1742007032936,-8500.0,0.0001284,2]
[356172142,1742007032948,-8500.0,0.00012849,2]
[356172143,1742007032958,-8500.0,0.00012849,2]
[356172144,1742007032967,-8500.0,0.00012858,2]
[356172145,1742007032978,-8500.0,0.00012858,2]
[356172146,1742007032988,-8500.0,0.00012866,2]
[356172147,1742007032998,-8500.0,0.00012866,2]
[356172148,1742007033009,-191.6,0.00012874,2]
[356172149,1742007033019,-8500.0,0.00012875,2]
[356172150,1742007033029,-8500.0,0.00012875,2]
[356172151,1742007033039,-8500.0,0.00012884,2]
[356172152,1742007033049,-8500.0,0.00012884,2]
[356172153,1742007033059,-8500.0,0.00012884,2]
[356172154,1742007033069,-8500.0,0.00012884,2]
[356172155,1742007033079,-8500.0,0.00012884,2]
[356172156,1742007033089,-8500.0,0.00012893,2]
[356172157,1742007033098,-8500.0,0.00012893,2]
[356172158,1742007033108,-8500.0,0.00012893,2]
[356172159,1742007033119,-8500.0,0.00012893,2]
[356172160,1742007033128,-8500.0,0.00012893,2]
[356172161,1742007033139,-8500.0,0.00012893,2]
[356172162,1742007033148,-468.91609885,0.00012893,2]
[356172163,1742007033158,-200.0,0.00012969,2]
[356172164,1742007033168,-350.0,0.00013,2]
[356172165,1742007033178,-172.7,0.00013,2]
[356172166,1742007033187,-172.7,0.00013,2]
[356172167,1742007033197,-172.7,0.00013,2]
[356172168,1742007033207,-173.479258,0.00013053,2]
[356172169,1742007033216,-152.0,0.00013159,3]
[356172170,1742007033226,-1000.0,0.00013387,2]
[356172171,1742007033236,-408.75,0.00013503,2]
[356172172,1742007033246,-150.0,0.00013594,2]
[356172173,1742007033260,-150.0,0.00013597,2]
[356172174,1742007033269,-1419.0,0.00013616,2]
[356172175,1742007033279,-452.744,0.00013616,2]
[356172176,1742007033289,-150.66173441,0.00013653,2]
[356172177,1742007033299,-1000.0,0.00013658,2]
[356172178,1742007033310,-1000.0,0.00013661,2]
[356172179,1742007033320,-172.7,0.00013689,2]
[356172180,1742007033330,-500.81420698,0.00013698,2]
[356172181,1742007033341,-500.0,0.00013699,2]
[356172182,1742007033352,-200.0,0.00013699,2]
[356172183,1742007033361,-151.41098343,0.00013699,2]
[356172184,1742007033371,-500.0,0.00013699,2]
[356172185,1742007033381,-452.30162066,0.00013699,2]
[356172186,1742007033391,-500.0,0.00013699,2]
[356172187,1742007033401,-500.0,0.00013699,2]
[356172188,1742007033411,-500.0,0.00013699,2]
[356172189,1742007033422,-369.62425545,0.00013699,2]
[356172190,1742007033432,-500.0,0.00013699,2]
[356172191,1742007033442,-1200.0,0.000137,2]
[356172192,1742007033452,-47.13133711,0.000137,2]
[356172193,1742007033469,-1285.70283055,0.000137,2]
[356172194,1742007033481,-402.91371413,0.000137,2]
[356172195,1742007033498,-2507.43057068,0.000137,2]
[356172196,1742007033510,-7960.91580602,0.000137,2]
[356172204,1742007037848,-424.94225775,0.00012501,2]
[356172205,1742007037858,-56.35645317,0.00013719,2]
[356172206,1742007037870,-943.64354683,0.00013719,2]
[356172207,1742007037880,-150.0,0.00013721,2]
[356172208,1742007037890,-150.0,0.00013721,2]
[356172209,1742007037900,-1000.0,0.00013721,2]
[356172210,1742007037910,-150.0,0.00013724,2]
[356172211,1742007037919,-1000.0,0.00013725,2]
[356172212,1742007037928,-1000.0,0.00013729,2]
[356172213,1742007037939,-150.0,0.00013748,2]
[356172214,1742007037949,-1000.0,0.00013771,2]
[356172215,1742007037959,-150.0,0.00013776,2]
[356172216,1742007037968,-1000.0,0.00013779,2]
[356172217,1742007037980,-150.0,0.00013786,2]
[356172218,1742007037997,-1000.0,0.00013803,2]
[356172219,1742007038012,-150.6694534,0.00013803,2]
[356172220,1742007038022,-1000.0,0.00013805,2]
[356172221,1742007038032,-215.68349341,0.00013817,2]
[356172222,1742007038042,-549.01137874,0.00013839,2]
[356172223,1742007038056,-245.97996973,0.00013839,2]
[356172224,1742007038066,-1000.0,0.00013862,2]
[356172225,1742007038076,-151.1773349,0.00013897,2]
[356172226,1742007038087,-1000.0,0.00013929,2]
[356172227,1742007038097,-286.52606147,0.00013931,2]
[356172228,1742007038110,-570.49393853,0.00013931,2]
[356172229,1742007038120,-383.74188158,0.00014,3]
[356172231,1742007040002,-500.0,0.00012611,2]
[356172232,1742007040012,-66.12214868,0.00012611,2]
[356172233,1742007040024,-433.87785132,0.00012611,2]
[356172234,1742007040033,-125.01565076,0.00014,3]
[356172235,1742007040045,-602.76063078,0.00014,3]
[356172236,1742007040064,-8888.48183688,0.00014,3]
[356172237,1742007040073,-151.0,0.00014,2]
[356172238,1742007040083,-151.976435,0.00014,2]
[356172239,1742007040092,-500.0,0.00014157,2]
[356172240,1742007040102,-191.6,0.00014304,2]
[356172241,1742007040111,-3085.01224258,0.00014363,2]
[356172242,1742007040159,-500.0,0.00012611,2]
[356172243,1742007040169,-124.51862867,0.00014363,2]
[356172244,1742007040180,-358.89490425,0.00014363,2]
[356172245,1742007040373,-332.81009867,0.00012611,2]
[356172246,1742007040384,-907.54969229,0.00014363,2]
[356172247,1742007040396,-5933.23132938,0.00014363,2]
[356172254,1742007042886,-500.0,0.00012611,2]
[356172255,1742007042897,-500.0,0.00012611,2]
[356172256,1742007042906,-500.0,0.00012611,2]
[356172257,1742007042916,-500.0,0.00012611,2]
[356172258,1742007042926,-685.0,0.000137,2]
[356172259,1742007042936,-2259.36932319,0.00014363,2]
[356172260,1742007042952,-3401.20600006,0.00014363,2]
[356172266,1742007043543,-927.4914,0.00014363,2]
[356172284,1742008232075,-233.54,0.0001,2]
[356172285,1742008232086,-42.16,0.0001078,2]
[356172286,1742008232182,-957.84,0.0001078,2]
[356172287,1742008232192,-83.57553431,0.00012127,2]
[356172288,1742008232345,-916.42446569,0.00012127,2]
[356172289,1742008232355,-500.0,0.00012512,2]
[356172290,1742008232365,-390.5784,0.00012512,2]
[356172291,1742008232375,-110.293404,0.00013105,2]
[356172292,1742008232387,-439.706596,0.00013105,2]
[356172293,1742008232396,-150.0,0.00013105,2]
[356172294,1742008232406,-954.55654897,0.00013475,2]
[356172295,1742008232417,-45.44345103,0.00013475,2]
[356172296,1742008232427,-346.0,0.000137,2]
[356172297,1742008232438,-210.10514821,0.00013763,2]
[356172304,1742008237975,-339.89485179,0.00013763,2]
[356172305,1742008237985,-150.0,0.00013763,2]
[356172306,1742008237996,-4428.67866547,0.000139,2]
[356172307,1742008238014,-433.98358239,0.00014021,2]
[356172308,1742008238025,-728.46,0.00014157,2]
[356172309,1742008238036,-200.0,0.00014248,2]
[356172310,1742008238046,-863.263278,0.00014358,2]
[356172311,1742008238056,-1316.05416,0.00014363,11]
[356172312,1742008238065,-308.64067362,0.0001471,2]
[356172313,1742008238078,-83.79192018,0.0001471,2]
[356172314,1742008238087,-204.96663531,0.0001472,2]
[356172315,1742008238099,-401.89910779,0.0001472,2]
[356172316,1742008238109,-408.2588216,0.0001473,2]
[356172317,1742008238118,-612.3882331,0.0001474,2]
[356172318,1742008238127,-629.46807835,0.00014822,2]
[356172319,1742008238139,-370.53192165,0.00014822,2]
[356172320,1742008238149,-408.75,0.00014853,2]
[356172321,1742008238158,-216.22651234,0.000149,2]
[356172322,1742008238167,-216.22651233,0.000149,2]
[356172323,1742008238178,-216.22651233,0.000149,2]
[356172324,1742008238187,-151.26811437,0.00015,2]
[356172325,1742008238198,-324.0,0.00015,30]
[356172326,1742008238207,-400.0,0.00015,2]
[356172327,1742008238217,-152.0,0.0001554,4]
[356172328,1742008238227,-155.38104538,0.0001554,5]
[356172329,1742008238238,-1167.026,0.0001554,2]
[356172331,1742008238247,-233.0,0.0001554,2]
[356172333,1742008238257,-500.0,0.00015585,2]
[356172335,1742008238266,-152.81,0.00015589,2]
[356172337,1742008238275,-2751.0,0.00015594,2]
[356172339,1742008238284,-398.8,0.00015601,2]
[356172341,1742008238294,-23900.0,0.00015673,2]
[356172343,1742008238303,-202.0,0.0001569,2]
[356172344,1742008238313,-191.6,0.00015925,2]
[356172345,1742008238324,-51.35876196,0.00015932,2]
[356172348,1742008238769,-1448.64123804,0.00015932,2]
[356172349,1742008238780,-200.0,0.00016039,2]
[356172350,1742008238789,-2000.0,0.00016055,2]
[356172351,1742008238799,-150.0,0.0001608,2]
[356172352,1742008238809,-1561.07555903,0.00016116,2]
[356172353,1742008238826,-1334.35403816,0.00016116,2]
[356172354,1742008238838,-941.57868834,0.00016116,2]
[356172355,1742008238849,-1695.70601764,0.00016116,2]
[356172356,1742008238861,-4467.27569683,0.00016116,2]
[356172357,1742008238871,-1000.0,0.0001617,2]
[356172358,1742008238880,-338.68430317,0.00016204,2]
[356172359,1742008238895,-70.06569683,0.00016204,2]
[356172360,1742008238906,-522.07791813,0.0001632,2]
[356172366,1742008240296,-2116.83392182,0.00012512,2]
[356172367,1742008240307,-8064.79999067,0.0001632,2]
[356172368,1742008240319,-671.855,0.0001632,2]
[356172369,1742008240350,-6054.0770912,0.0001632,2]
[356172370,1742008240360,-728.46,0.00016421,2]
[356172371,1742008240370,-170.46,0.00016433,2]
[356172372,1742008240380,-1000.0,0.00016438,2]
[356172373,1742008240390,-1000.0,0.00016438,2]
[356172374,1742008240401,-1000.0,0.00016438,2]
[356172375,1742008240412,-1000.0,0.00016438,2]
[356172376,1742008240422,-1000.0,0.00016438,2]
[356172377,1742008240431,-150.0,0.00016438,2]
[356172378,1742008240442,-561.59,0.00016493,30]
[356172379,1742008240452,-700.63,0.000166,7]
[356172380,1742008240463,-165.79,0.00016712,2]
[356172381,1742008240473,-1534.57825731,0.000168,2]
[356172382,1742008240482,-150.0,0.00016871,2]
[356172383,1742008240492,-2284.42,0.00016922,2]
[356172384,1742008240501,-450.0,0.00017,2]
[356172385,1742008240511,-150.0,0.00017304,2]
[356172386,1742008240520,-300.0,0.00017451,2]
[356172387,1742008240530,-202.0,0.0001767,2]
[356172388,1742008240540,-947.67,0.00017708,2]
[356172389,1742008240550,-150.0,0.00017736,2]
[356172390,1742008240559,-600.0,0.00017808,2]
[356172391,1742008240569,-929.89,0.00017876,2]
[356172392,1742008240579,-792.75,0.00017876,2]
[356172393,1742008240588,-779.11,0.00017876,2]
[356172394,1742008240598,-325.28,0.00017876,2]
[356172395,1742008240608,-151.0,0.00018066,2]
[356172396,1742008240618,-200.0,0.00018082,2]
[356172397,1742008240627,-150.0,0.00018169,2]
[356172398,1742008240637,-152.18047283,0.00018594,2]
[356172399,1742008240646,-18066.43647808,0.00018595,2]
[356172400,1742008240658,-2482.0,0.00018595,2]
[356172402,1742008243259,-4713.75171003,0.00018595,2]
[356172412,1742008246088,-8498.79024793,0.00018595,2]
[356172413,1742008246143,-29.49613812,0.00018595,2]
[356172414,1742008246154,-153.9,0.000186,2]
[356172415,1742008246163,-150.0,0.00018601,2]
[356172416,1742008246173,-377.42284263,0.00018652,2]
[356172417,1742008246184,-558.08066218,0.00018652,2]
[356172418,1742008246196,-1729.24609705,0.00018652,2]
[356172419,1742008246207,-3135.25039814,0.00018652,2]
[356172420,1742008246216,-2046.06939606,0.00018661,2]
[356172421,1742008246306,-3753.93060394,0.00018661,2]
[356172422,1742008246315,-5800.0,0.00018669,2]
[356172423,1742008246326,-5800.0,0.00018678,2]
[356172424,1742008246335,-728.46,0.00018685,2]
[356172425,1742008246345,-188.029862,0.00018686,2]
[356172426,1742008246354,-5800.0,0.00018686,2]
[356172427,1742008246364,-5800.0,0.00018686,2]
[356172428,1742008246373,-5800.0,0.00018686,2]
[356172429,1742008246382,-3829.57953386,0.00018695,2]
[356172430,1742008246393,-1970.42046614,0.00018695,2]
[356172431,1742008246403,-5800.0,0.00018695,2]
[356172432,1742008246413,-5800.0,0.00018695,2]
[356172433,1742008246423,-2504.16884794,0.00018695,2]
[356172434,1742008246434,-1718.69375,0.00018695,2]
[356172435,1742008246446,-1577.13740206,0.00018695,2]
[356172436,1742008246456,-300.0,0.0001882,2]
[356172437,1742008246465,-500.0,0.00019,2]
[356172438,1742008246474,-150.0,0.00019034,2]
[356172439,1742008246680,-500.0,0.00019178,30]
[356172440,1742008246752,-301.26671313,0.00019178,30]
[356172441,1742008246762,-120.59588481,0.000192,2]
[356172442,1742008246774,-225.67978594,0.000192,2]
[356172443,1742008246783,-214.54575466,0.000192,2]
[356172446,1742008572544,3538.14112121,0.00020011,100]
[356172447,1742008718736,250.0,9e-05,2]
[356172448,1742008731068,-350.0,0.00022,120]
[356172449,1742008731099,-500.0,0.00024,120]
[356172450,1742008731127,-306.79963578,0.00025,60]
[356172451,1742008731151,-500.0,0.00025,120]
[356172452,1742008731178,-500.0,0.00026,120]
[356172453,1742008731202,-167.0315111,0.00026198,120]
[356172454,1742008731227,-157.0315111,0.00026498,120]
[356172455,1742008731255,-500.0,0.00027,120]
[356172456,1742008731279,-2503.3439918,0.00027,120]
[356172457,1742008731304,-167.0315111,0.00027198,120]
[356172458,1742008731333,-2000.0,0.00027397,120]
[356172459,1742008731359,-514.086371,0.00027397,120]
[356172460,1742008731389,-157.0315111,0.00027498,120]
[356172461,1742008731416,-500.0,0.00028,120]
[356172462,1742008731440,-167.0315111,0.00028198,120]
[356172463,1742008731465,-157.0315111,0.00028498,120]
[356172464,1742008731492,-1299.75,0.000287,31]
[356172465,1742008731519,-1299.75,0.000287,31]
[356172466,1742008731546,-1299.75,0.000287,31]
[356172467,1742008731571,-1299.75,0.000287,31]
[356172468,1742008731598,-1299.75,0.000287,31]
[356172469,1742008731625,-1299.75,0.000287,31]
[356172470,1742008731652,-1299.75,0.000287,31]
[356172471,1742008731678,-1299.75,0.000287,31]
[356172472,1742008731704,-1299.75,0.000287,31]
[356172473,1742008731730,-1299.75,0.000287,31]
[356172474,1742008731757,-1299.75,0.000287,31]
[356172475,1742008731783,-1299.75,0.000287,31]
[356172476,1742008731812,-1299.75,0.000287,31]
[356172477,1742008731838,-1299.75,0.000287,31]
[356172478,1742008731865,-1299.75,0.000287,31]
[356172479,1742008732177,-1299.75,0.000287,31]
[356172480,1742008732204,-2000.0,0.00028897,120]
[356172481,1742008732229,-909.6853504,0.00029,120]
[356172482,1742008732255,-167.0315111,0.00029198,120]
[356172483,1742008732280,-1000.0,0.000292,120]
[356172484,1742008733128,-157.0315111,0.00029498,120]
[356172485,1742008733157,-1299.75,0.000299,31]
[356172486,1742008733183,-1299.75,0.000299,31]
[356172487,1742008733209,-1299.75,0.000299,31]
[356172488,1742008733235,-1299.75,0.000299,31]
[356172489,1742008733261,-1299.75,0.000299,31]
[356172490,1742008733289,-1299.75,0.000299,31]
[356172491,1742008733317,-1299.75,0.000299,31]
[356172492,1742008733345,-1299.75,0.000299,31]
[356172493,1742008733372,-1299.75,0.000299,31]
[356172494,1742008733401,-1299.75,0.000299,31]
[356172495,1742008733428,-1299.75,0.000299,31]
[356172496,1742008733455,-1299.75,0.000299,31]
[356172497,1742008733480,-1299.75,0.000299,31]
[356172498,1742008733507,-1299.75,0.000299,31]
[356172499,1742008733533,-1299.75,0.000299,31]
[356172500,1742008733559,-1299.75,0.000299,31]
[356172501,1742008733585,-1299.75,0.000299,31]
[356172502,1742008733611,-1299.75,0.000299,31]
[356172503,1742008733637,-1299.75,0.000299,31]
[356172504,1742008733664,-1299.75,0.000299,31]
[356172505,1742008733689,-1299.75,0.000299,31]
[356172506,1742008733715,-1299.75,0.000299,31]
[356172507,1742008733741,-1299.75,0.000299,31]
[356172508,1742008733768,-1299.75,0.000299,31]
[356172509,1742008733795,-273.77743776,0.0003,120]
[356172510,1742008733822,-205.53169135,0.0003,60]
[356172511,1742008733847,-160.61614931,0.0003,120]
[356172512,1742008733871,-3149.14,0.0003,120]
[356172513,1742008733896,-900.0,0.0003,31]
[356172514,1742008733922,-500.0,0.0003,120]
[356172515,1742008733946,-1047.01713237,0.0003,120]
[356172516,1742008733971,-157.0315111,0.00030198,120]
[356172517,1742008733996,-1128.166722,0.00030397,120]
[356172518,1742008734023,-1419.36,0.000304,120]
[356172519,1742008734048,-157.0315111,0.00030498,120]
[356172520,1742008734073,-150.0,0.0003081,120]
[356172521,1742008734097,-900.0,0.00031,32]
[356172522,1742008734120,-1123.7752854,0.00031,120]
[356172523,1742008734144,-3763.70185807,0.00031,120]
[356172524,1742008734170,-1299.75,0.000311,31]
[356172525,1742008734197,-1299.75,0.000311,31]
[356172526,1742008734224,-1299.75,0.000311,31]
[356172527,1742008734253,-1299.75,0.000311,31]
[356172528,1742008734280,-1299.75,0.000311,31]
[356172529,1742008734307,-1299.75,0.000311,31]
[356172530,1742008734334,-1299.75,0.000311,31]
[356172531,1742008734360,-1299.75,0.000311,31]
[356172532,1742008734386,-1299.75,0.000311,31]
[356172533,1742008734412,-1299.75,0.000311,31]
[356172534,1742008734711,-1299.75,0.000311,31]
[356172535,1742008734739,-1299.75,0.000311,31]
[356172536,1742008734767,-1299.75,0.000311,31]
[356172537,1742008734793,-1299.75,0.000311,31]
[356172538,1742008734821,-1299.75,0.000311,31]
[356172539,1742008734849,-1299.75,0.000311,31]
[356172540,1742008734876,-1299.75,0.000311,31]
[356172541,1742008734903,-1299.75,0.000311,31]
[356172542,1742008734929,-1299.75,0.000311,31]
[356172543,1742008734955,-1299.75,0.000311,31]
[356172544,1742008734983,-1299.75,0.000311,31]
[356172545,1742008735011,-1299.75,0.000311,31]
[356172546,1742008735039,-1299.75,0.000311,31]
[356172547,1742008735066,-1299.75,0.000311,31]
[356172548,1742008735090,-157.0315111,0.00031198,120]
[356172549,1742008735114,-157.0315111,0.00031498,120]
[356172550,1742008735139,-500.0,0.00032,120]
[356172551,1742008735163,-968.3778721,0.00032,33]
[356172552,1742008735186,-157.0315111,0.00032198,120]
[356172553,1742008735212,-1299.75,0.000323,31]
[356172554,1742008735238,-1299.75,0.000323,31]
[356172555,1742008735266,-1299.75,0.000323,31]
[356172556,1742008735292,-1299.75,0.000323,31]
[356172557,1742008735318,-1299.75,0.000323,31]
[356172558,1742008735345,-1299.75,0.000323,31]
[356172559,1742008735370,-1299.75,0.000323,31]
[356172560,1742008735396,-1299.75,0.000323,31]
[356172561,1742008735421,-1299.75,0.000323,31]